[Event "CRO Team Cup 2018"]
[Site "Mali Losinj"]
[Date "2018.05.19"]
[Round "2.22"]
[White "Plenkovic, Zdenko"]
[Black "Radenic, Filip"]
[Result "1-0"]
[ECO "C11"]
[WhiteElo "2403"]
[BlackElo "2177"]
[Annotator "ChessBase"]
[PlyCount "119"]
[EventDate "2018.??.??"]
[EventType "team-tourn"]
[EventCountry "CRO"]
[SourceTitle "playchess.com"]
[Source "ChessBase"]
[SourceQuality "1"]
[TimeControl "40/5400+30:1800+30"]

1. e4 {[%emt 0:05:30]} e6 {[%emt 0:01:00]} 2. d4 {[%emt 0:00:30]} d5 {[%emt 0:00:00]} 3. Nc3 {[%emt 0:00:00]} Nf6 {[%emt 0:00:00]} 4. e5 {[%emt 0:00:00]} Nfd7 {[%emt 0:00:30]} 5. f4 {[%emt 0:00:30]} c5 {[%emt 0:00:00]} 6. Nf3 {[%emt 0:00:00]} Nc6 {[%emt 0:00:00]} 7. Bd3 {[%emt 0:00:00]} cxd4 {[%emt 0:06:30]} 8. Ne2 {[%emt 0:03:30]} f5 {[%emt 0:01:30]} 9. O-O {[%emt 0:00:30]} Be7 {[%emt 0:02:30]} 10. Kh1 {[%emt 0:06:30]} O-O {[%emt 0:04:30]} 11. a3 {[%emt 0:05:30]} a5 {[%emt 0:03:30]} 12. b3 {[%emt 0:03:30]} Nc5 {[%emt 0:04:30]} 13. Bb2 {[%emt 0:06:30]} Bd7 {[%emt 0:02:30]} 14. Nexd4 {[%emt 0:04:30]} Qb6 {[%emt 0:05:30]} 15. Nxc6 {[%emt 0:12:30]} bxc6 {[%emt 0:00:30]} 16. Bd4 {[%emt 0:00:30]} Qb7 {[%emt 0:02:30]} 17. Bxc5 {[%emt 0:01:30]} Bxc5 {[%emt 0:00:30]} 18. g4 {[%emt 0:01:30]} Be3 {[%emt 0:11:30]} 19. gxf5 {[%emt 0:03:30]} exf5 {[%emt 0:06:30]} 20. Qe1 {[%emt 0:08:30]} d4 {[%emt 0:01:30]} 21. Bc4+ {[%emt 0:01:30]} Kh8 {[%emt 0:00:30]} 22. Qg3 {[%emt 0:08:30]} c5 {[%emt 0:00:30]} 23. h4 {[%emt 0:01:30]} Qe4 {[%emt 0:02:30]} 24. Rae1 {[%emt 0:09:57]} Bxf4 {[%emt 0:04:30]} 25. Rxe4 {[%emt 0:00:08]} Bxg3 {[%emt 0:00:00]} 26. Re2 {[%emt 0:00:03]} Bc6 {[%emt 0:00:00]} 27. h5 {[%emt 0:02:52]} Rae8 {[%emt 0:03:30]} 28. e6 {[%emt 0:00:54]} Rf6 {[%emt 0:02:30]} 29. Kg2 {[%emt 0:01:42]} Bf4 {[%emt 0:01:30]} 30. Kh3 {[%emt 0:00:04]} Rh6 {[%emt 0:02:30]} 31. Nh4 {[%emt 0:01:12]} Rxh5 {[%emt 0:08:30]} 32. Rxf4 {[%emt 0:00:11]} g5 {[%emt 0:00:30]} 33. Rxf5 {[%emt 0:01:13]} Rxh4+ {[%emt 0:00:30]} 34. Kg3 {[%emt 0:00:29]} Re4 {[%emt 0:01:30]} 35. Rxe4 {[%emt 0:02:52]} Bxe4 {[%emt 0:00:30]} 36. Rxg5 {[%emt 0:00:34]} Bxc2 {[%emt 0:00:30]} 37. Kf4 {[%emt 0:00:11]} a4 {[%emt 0:03:30]} 38. bxa4 {[%emt 0:00:55]} Bxa4 {[%emt 0:00:00]} 39. Rxc5 {[%emt 0:02:08]} Kg7 {[%emt 0:02:11]} 40. Rc7+ {[%emt 0:00:00]} Kg6 {[%emt 0:01:19]} 41. Ke5 {[%emt 0:01:35]} Bc2 {[%emt 0:02:30]} 42. Bb5 {[%emt 0:05:30]} Rb8 {[%emt 0:00:30]} 43. Bc6 {[%emt 0:00:30]} Kg5 {[%emt 0:02:30]} 44. Kxd4 {[%emt 0:01:30]} Kf6 {[%emt 0:00:30]} 45. Bd5 {[%emt 0:02:30]} Bg6 {[%emt 0:02:30]} 46. Rc3 {[%emt 0:02:30]} Rd8 {[%emt 0:01:30]} 47. Rf3+ {[%emt 0:00:30]} Ke7 {[%emt 0:00:00]} 48. Ke5 {[%emt 0:00:30]} Rc8 {[%emt 0:01:00]} 49. Rb3 {[%emt 0:00:30]} Rc7 {[%emt 0:00:30]} 50. a4 {[%emt 0:04:30]} Bc2 {[%emt 0:02:30]} 51. Ra3 {[%emt 0:02:30]} Ra7 {[%emt 0:01:30]} 52. a5 {[%emt 0:01:30]} Ra6 {[%emt 0:00:30]} 53. Rc3 {[%emt 0:00:30]} Bg6 {[%emt 0:00:30]} 54. Rc7+ {[%emt 0:00:30]} Kd8 {[%emt 0:00:00]} 55. Rc5 {[%emt 0:00:00]} Ke7 {[%emt 0:00:00]} 56. Bc4 {[%emt 0:02:31]} Ra7 {[%emt 0:00:30]} 57. a6 {[%emt 0:01:45]} Bh5 {[%emt 0:00:30]} 58. Kd4 {[%emt 0:04:02]} Bg6 {[%emt 0:01:30]} 59. Rb5 {[%emt 0:01:02]} Kd6 {[%emt 0:02:30]} 60. Rb7 {[%emt 0:00:49]} 1-0